bitfinex-derivatives/quotes_SOLF0:USTF0_20260213
["timestamp","ask_amount","ask_price","bid_price","bid_amount"]
[1770945170032,3.31711266,78.58,78.539,4.41430219]
[1770945170728,14.78021266,78.58,78.539,4.41430219]
[1770945174427,11.4631,78.58,78.539,4.41430219]
[1770945174628,14.78021266,78.58,78.539,4.41430219]
[1770945174931,11.4619,78.588,78.541,4.44980016]
[1770945175529,11.4619,78.588,78.544,4.44980016]
[1770945175739,11.4619,78.588,78.49,15.54376597]
[1770945175740,3.31711266,78.6,78.551,4.44980016]
[1770945176625,11.4603,78.599,78.553,4.4907869]
[1770945177528,11.4615,78.591,78.553,4.4907869]
[1770945177827,3.31711266,78.59,78.553,4.4907869]
[1770945179232,101.6,78.618,78.538,4.48486403]
[1770945179233,14.78021266,78.58,78.538,4.48486403]
[1770945180220,11.8289142,78.613,78.484,22.9539]
[1770945180221,11.4646,78.569,78.526,4.47701989]
[1770945182034,11.4661,78.559,78.526,4.47701989]
[1770945182239,11.4661,78.559,78.514,4.47660972]
[1770945183837,14.78932183,78.55,78.503,4.47660972]
[1770945184239,3.32192183,78.56,78.511,4.4806333]
[1770945184933,11.4661,78.559,78.511,4.4806333]
[1770945185738,107.24,78.578,78.5,3.32192183]
[1770945185739,3.32192183,78.55,78.5,3.32192183]
[1770945186038,3.32192183,78.54,78.499,4.4806333]
[1770945186232,38.2,78.595,78.451,15.54376597]
[1770945186233,11.4673,78.551,78.504,4.49768235]
[1770945186433,3.32192183,78.56,78.511,4.49768235]
[1770945187729,14.78792183,78.56,78.513,4.49768235]
[1770945190137,3.32192183,78.56,78.515,4.50475567]
[1770945190340,3.32192183,78.57,78.521,4.50475567]
[1770945191843,11.4647,78.569,78.521,4.50475567]
[1770945193035,11.4663,78.558,78.521,4.50475567]
[1770945195236,3.32192183,78.58,78.531,4.50833064]
[1770945195439,3.32192183,78.59,78.531,4.50833064]
[1770945196230,3.32192183,78.59,78.53,3.32192183]
[1770945196231,11.4618,78.589,78.541,4.50085352]
[1770945197540,11.4603,78.599,78.552,4.50085352]
[1770945198745,11.4603,78.599,78.555,4.49575673]
[1770945199832,11.4603,78.599,78.561,4.49575673]
[1770945206954,11.4567,78.623,78.581,4.58170691]
[1770945207849,3.32192183,78.62,78.581,4.58170691]
[1770945208455,11.4574,78.619,78.57,19.30299]
[1770945208650,11.4574,78.619,78.535,101.6]
[1770945208651,3.32192183,78.6,78.558,4.51666817]
[1770945209148,101.6,78.64,78.558,4.51666817]
[1770945209149,3.32192183,78.59,78.558,4.51666817]
[1770945209354,3.32192183,78.61,78.561,4.51666817]
[1770945209854,3.32192183,78.61,78.566,4.51666817]
[1770945210061,11.4577,78.617,78.566,4.51666817]
[1770945210661,3.32192183,78.61,78.566,4.51666817]
[1770945210956,14.78062183,78.61,78.566,4.51666817]
[1770945211155,3.32192183,78.61,78.566,4.51666817]
[1770945211356,3.32192183,78.59,78.554,4.46792749]
[1770945211552,3.32192183,78.59,78.504,22.91530172]
[1770945211553,3.32192183,78.58,78.53,3.32192183]
[1770945211747,3.32192183,78.57,78.528,4.46792749]
[1770945212758,3.32192183,78.56,78.528,4.46792749]
[1770945215767,3.32192183,78.56,78.519,11.4719]
[1770945215964,3.32192183,78.55,78.514,4.47727378]
[1770945221873,11.4661,78.559,78.514,4.47727378]
[1770945224070,3.32192183,78.56,78.5,3.32192183]
[1770945224071,11.4674,78.55,78.503,11.4742]
[1770945224374,11.4674,78.55,78.504,4.51900376]
[1770945224375,14.78932183,78.55,78.504,4.51900376]
[1770945225977,14.78932183,78.55,78.506,4.51900376]
[1770945227980,11.4674,78.55,78.51,3.32192183]
[1770945229377,101.62,78.568,78.52,3.32192183]
[1770945229378,11.4662,78.559,78.52,3.32192183]
[1770945229581,11.4662,78.559,78.514,4.52215864]
[1770945230176,11.4671,78.552,78.514,4.52215864]
[1770945232083,3.32192183,78.56,78.52,3.32192183]
[1770945232084,11.466,78.56,78.52,3.32192183]
[1770945232582,11.466,78.56,78.521,4.50962975]
[1770945233784,11.4669,78.554,78.521,4.50962975]
[1770945234774,222.3066331,79.085,78.521,4.50962975]
[1770945234775,11.4653,78.565,78.521,4.50962975]
[1770945238980,111.56,78.581,78.521,4.50962975]
[1770945239188,3.32192183,78.59,78.531,4.46156105]
[1770945239485,3.32192183,78.58,78.531,4.46156105]
[1770945240885,11.4634,78.578,78.533,4.46860012]
[1770945244383,11.4649,78.567,78.52,7.73712551]
[1770945244686,3.32105621,78.56,78.509,4.4160693]
[1770945245391,3.32105621,78.56,78.511,4.4160693]
[1770945246888,11.4661,78.559,78.514,4.43075705]
[1770945250689,11.4676,78.549,78.514,4.43075705]
[1770945253292,3.32105621,78.55,78.514,4.43075705]
[1770945253293,11.4686,78.542,78.514,4.43075705]
[1770945253689,11.4686,78.542,78.503,4.51512233]
[1770945254193,11.4686,78.542,78.474,15.54672837]
[1770945254194,11.4696,78.535,78.493,4.51942865]
[1770945258605,11.4696,78.535,78.5,3.32105621]
[1770945259708,11.4696,78.535,78.5,7.84971874]
[1770945260002,11.4681,78.545,78.501,4.52866253]
[1770945261297,11.4693,78.537,78.501,4.52866253]
[1770945271311,11.4693,78.537,78.5,3.32105621]
[1770945271312,11.4679,78.547,78.504,4.53327823]
[1770945272821,3.32105621,78.55,78.508,4.52018727]
[1770945274412,11.4677,78.548,78.508,4.52018727]
[1770945274617,11.85605051,78.565,78.497,11.475]
[1770945274618,3.32105621,78.54,78.498,4.52326372]
[1770945275714,11.4693,78.537,78.498,4.52326372]
[1770945276314,3.32105621,78.55,78.501,4.55394675]
[1770945277825,11.4676,78.549,78.502,4.55394675]
[1770945279921,15.17710672,78.57,78.52,3.32105621]
[1770945280131,3.32105621,78.58,78.521,4.52859844]
[1770945280821,11.465,78.567,78.523,4.52851077]
[1770945281713,11.465,78.567,78.525,4.52851077]
[1770945282920,3.32105621,78.57,78.528,4.53229815]
[1770945284832,3.32105621,78.57,78.53,4.53469718]
[1770945285433,11.4647,78.568,78.53,4.53469718]
[1770945286628,14.78705621,78.56,78.521,11.4715]
[1770945286831,3.32105621,78.56,78.521,11.4715]
[1770945287934,3.32105621,78.56,78.525,16.06153296]
[1770945290830,3.32105621,78.57,78.531,4.6030241]
[1770945291029,11.4634,78.577,78.531,4.6030241]
[1770945291726,11.4645,78.57,78.531,4.6030241]
[1770945291930,14.78555621,78.57,78.531,4.6030241]
[1770945292331,11.4634,78.577,78.531,4.6030241]
[1770945292532,3.32105621,78.57,78.531,4.6030241]
[1770945293838,14.78545621,78.57,78.531,4.6030241]
[1770945298741,3.32105621,78.57,78.534,16.00554704]
[1770945298936,3.32105621,78.57,78.534,4.53594704]
[1770945300242,3.32105621,78.57,78.511,4.53396044]
[1770945300744,3.32105621,78.57,78.531,4.53396044]
[1770945300944,3.32105621,78.59,78.541,4.53396044]
[1770945301547,3.32105621,78.59,78.542,4.5340026]
[1770945301548,11.4617,78.589,78.542,4.5340026]
[1770945302840,3.32028055,78.58,78.544,4.53606435]
[1770945303237,11.4617,78.589,78.544,4.53606435]
[1770945304742,11.4617,78.589,78.54,3.32028055]
[1770945304743,11.4617,78.589,78.545,16.0193411]
[1770945306042,11.4617,78.589,78.546,4.5513411]
[1770945308748,11.4602,78.6,78.55,3.32028055]
[1770945308944,14.78048055,78.6,78.551,4.47618274]
[1770945309140,3.32028055,78.61,78.561,4.47618274]
[1770945310849,3.32028055,78.63,78.571,4.47154295]
[1770945311048,3.32028055,78.63,78.581,4.47154295]
[1770945311553,11.456,78.629,78.582,4.47154295]
[1770945312848,11.456,78.629,78.585,4.52060095]
[1770945313049,3.32028055,78.63,78.585,4.52060095]
[1770945313747,3.32028055,78.63,78.587,4.52060095]
[1770945314551,3.32028055,78.62,78.587,4.52060095]
[1770945315652,14.77608055,78.63,78.587,4.52060095]
[1770945315853,14.77608055,78.63,78.589,4.52004913]
[1770945316049,3.32028055,78.63,78.589,4.52004913]
[1770945318257,3.32028055,78.64,78.594,4.52692417]
[1770945319366,3.32028055,78.63,78.581,4.52692417]
[1770945319865,3.32028055,78.62,78.581,4.52692417]
[1770945320160,3.32028055,78.61,78.57,15.98727234]
[1770945320359,14.78038055,78.6,78.55,14.78758055]
[1770945320664,14.78038055,78.6,78.551,4.52287234]
[1770945321565,11.4589,78.608,78.561,4.52287234]
[1770945322064,3.32028055,78.6,78.561,4.52287234]
[1770945322761,3.32028055,78.61,78.566,4.54096214]
[1770945323257,3.32028055,78.62,78.568,4.54096214]
[1770945323459,3.32028055,78.63,78.581,4.54096214]
[1770945323868,3.32028055,78.63,78.588,4.54096214]
[1770945324069,11.4552,78.634,78.588,4.54096214]
[1770945324368,3.32028055,78.64,78.588,4.54096214]
[1770945325660,11.4546,78.638,78.589,11.4616]
[1770945325860,11.4546,78.638,78.59,4.49029159]
[1770945326762,2.21364189,78.68,78.554,101.58]
[1770945326763,3.32028055,78.62,78.581,15.92969962]
[1770945326965,3.32028055,78.62,78.582,4.46689962]
[1770945327667,11.4559,78.629,78.584,4.46689962]
[1770945329469,11.4559,78.629,78.585,15.92898375]
[1770945329866,11.4559,78.629,78.586,4.46678375]
[1770945330074,3.32028055,78.63,78.589,4.46678375]
[1770945331170,14.77608055,78.63,78.589,4.46678375]
[1770945331766,3.32028055,78.62,78.578,4.46145021]
[1770945332374,3.32028055,78.61,78.578,4.46145021]
[1770945332574,3.32028055,78.61,78.574,11.4638]
[1770945332771,3.32028055,78.61,78.567,4.4647759]
[1770945337165,3.32028055,78.6,78.567,4.4647759]
[1770945337364,3.32028055,78.6,78.527,22.9413]
[1770945337365,3.32028055,78.59,78.555,4.49951009]
[1770945337766,3.32028055,78.58,78.543,4.49951009]
[1770945339080,3.32028055,78.57,78.531,4.47582567]
[1770945339782,3.32028055,78.58,78.531,4.47582567]
[1770945340870,11.4632,78.579,78.534,15.96087968]
[1770945341471,3.32028055,78.57,78.534,15.96087968]
[1770945341875,3.32028055,78.57,78.535,4.49117968]
[1770945342069,11.4632,78.579,78.536,11.4694]
[1770945342369,3.32028055,78.58,78.537,4.49431101]
[1770945342978,14.78328055,78.58,78.537,4.49431101]
[1770945343878,3.32028055,78.57,78.529,11.4704]
[1770945344378,3.32028055,78.57,78.529,15.95249752]
[1770945344581,3.32028055,78.56,78.53,4.48209752]
[1770945344778,3.32028055,78.56,78.521,11.4715]
[1770945344973,3.32028055,78.56,78.521,15.95359752]
[1770945345280,3.32028055,78.56,78.522,4.48209752]
[1770945345475,11.4661,78.559,78.522,4.48209752]
[1770945345673,11.4661,78.559,78.511,11.473]
[1770945345674,3.32028055,78.55,78.512,4.48209752]
[1770945346676,11.4676,78.549,78.512,4.48209752]
[1770945346874,3.32028055,78.54,78.512,4.48209752]
[1770945350079,11.4676,78.549,78.512,4.48209752]
[1770945350281,3.32028055,78.55,78.512,4.48209752]
[1770945350477,11.4663,78.558,78.512,4.48209752]
[1770945351076,14.78478055,78.57,78.524,4.51949145]
[1770945352482,14.78478055,78.57,78.527,4.49160804]
[1770945354579,3.32028055,78.56,78.515,4.47693445]
[1770945355179,3.32028055,78.55,78.515,4.47693445]
[1770945355375,11.82179802,78.6,78.521,4.47693445]
[1770945355376,3.32028055,78.57,78.521,4.47693445]
[1770945356075,3.32028055,78.57,78.523,4.47693445]
[1770945356274,3.32028055,78.57,78.495,101.62]
[1770945356275,11.82179802,78.61,78.496,178.5032]
[1770945356479,3.32028055,78.6,78.551,4.52451785]
[1770945357875,3.32028055,78.6,78.556,4.52451785]
[1770945359882,3.32028055,78.59,78.556,4.52451785]
[1770945362484,3.32028055,78.58,78.53,7.73075752]
[1770945362682,3.32028055,78.58,78.531,4.41047697]
[1770945362889,3.32070893,78.58,78.531,4.41047697]
[1770945363890,3.32070893,78.58,78.533,4.41047697]
[1770945364299,3.32070893,78.58,78.483,22.9541]
[1770945364300,3.32070893,78.56,78.507,4.45365297]
[1770945364590,101.62,78.595,78.493,4.45365297]
[1770945364591,3.32070893,78.54,78.493,4.45365297]
[1770945365291,11.80589614,78.58,78.495,4.45365297]
[1770945365292,3.32070893,78.55,78.495,4.45365297]
[1770945366685,3.32070893,78.54,78.495,4.45365297]
[1770945366892,11.4681,78.545,78.498,4.56517353]
[1770945368091,7.41860679,78.58,78.504,4.56517353]
[1770945368290,101.62,78.582,78.504,4.56517353]
[1770945368593,15.80806735,78.61,78.5,7.41860679]
[1770945368594,11.4639,78.574,78.524,4.57325575]
[1770945369791,11.4639,78.574,78.527,4.57325575]
[1770945372993,11.4639,78.574,78.528,11.4706]
[1770945373898,11.4639,78.574,78.527,4.57325575]
[1770945377794,15.80806735,78.605,78.52,11.4717]
[1770945377795,11.80589614,78.604,78.535,4.58422231]
[1770945377995,7.41860679,78.61,78.535,4.58422231]
[1770945378698,11.4611,78.593,78.544,11.4681]
[1770945379196,11.4611,78.593,78.545,4.58404642]
[1770945381698,11.46,78.601,78.55,4.55878094]
[1770945381899,106.3,78.617,78.55,4.55878094]
[1770945382398,11.4598,78.603,78.561,11.4657]
[1770945387004,3.31898563,78.6,78.561,11.4657]
[1770945387203,3.31898563,78.59,78.553,11.4668]
[1770945387400,3.31898563,78.58,78.52,4.53126461]
[1770945387607,3.31898563,78.58,78.519,101.62]
[1770945387608,3.31898563,78.58,78.531,4.53126461]
[1770945387904,3.31898563,78.58,78.542,11.4685]
[1770945391510,11.4638,78.575,78.531,4.53126461]
[1770945392307,3.31898563,78.58,78.533,4.57276323]
[1770945393703,3.31898563,78.58,78.539,4.57291146]
[1770945394310,3.31898563,78.58,78.525,4.57245343]
[1770945395701,3.31898563,78.58,78.539,11.4689]
[1770945396108,11.80589614,78.602,78.541,4.55315186]
[1770945396306,3.31898563,78.6,78.551,4.55315186]
[1770945397709,3.31898563,78.6,78.559,11.466]
[1770945398011,3.31898563,78.6,78.56,4.55315186]
[1770945398414,11.4596,78.604,78.56,4.55315186]
[1770945398614,3.31898563,78.6,78.56,4.55315186]
[1770945400712,11.4604,78.599,78.56,4.55315186]
[1770945401515,3.31898563,78.58,78.521,4.49416331]
[1770945402016,3.31898563,78.58,78.52,101.6]
[1770945402017,3.31898563,78.57,78.534,11.4697]
[1770945402213,3.31898563,78.56,78.501,4.5002212]
[1770945402704,3.31898563,78.56,78.525,11.4709]
[1770945402909,3.31898563,78.56,78.517,4.5002212]
[1770945403108,3.31898563,78.55,78.517,4.5002212]
[1770945403519,3.31898563,78.55,78.518,11.4719]
[1770945404011,3.31898563,78.54,78.502,4.5002212]
[1770945406319,3.31898563,78.52,78.475,4.52512884]
[1770945406818,3.31898563,78.51,78.463,11.48]
[1770945407110,3.31898563,78.5,78.463,11.48]
[1770945408718,3.31898563,78.5,78.462,4.52512884]
[1770945408911,11.4734,78.509,78.462,4.52512884]
[1770945410919,11.4734,78.509,78.451,11.4818]
[1770945411420,11.4734,78.509,78.452,4.46971815]
[1770945413425,18.89915801,78.52,78.455,4.46329712]
[1770945414823,18.89915801,78.52,78.461,4.46374604]
[1770945416833,7.42735801,78.52,78.461,4.46374604]
[1770945417029,7.42735801,78.52,78.449,4.46345368]
[1770945417429,105.24,78.519,78.449,4.46345368]
[1770945417630,105.24,78.519,78.42,2.21747151]
[1770945417631,7.42735801,78.5,78.436,4.46345368]
[1770945417832,105.28,78.499,78.436,4.46345368]
[1770945418527,11.4773,78.482,78.436,4.46345368]
[1770945418731,7.42735801,78.48,78.411,4.47209464]
[1770945419034,11.4792,78.47,78.414,4.47209464]
[1770945419325,7.42735801,78.51,78.421,4.47209464]
[1770945419531,101.68,78.509,78.421,4.47209464]
[1770945419731,11.4757,78.493,78.447,4.47209464]
[1770945419926,7.42735801,78.51,78.447,4.47209464]
[1770945420129,11.4737,78.507,78.45,4.48875788]
[1770945420319,7.42735801,78.51,78.45,4.48875788]
[1770945420522,101.7,78.528,78.45,4.48875788]
[1770945420831,101.7,78.537,78.45,4.48875788]
[1770945421329,101.7,78.537,78.44,7.42735801]
[1770945421330,101.7,78.537,78.471,4.48868253]
[1770945422131,11.4718,78.52,78.474,4.42522773]
[1770945423835,101.7,78.543,78.476,4.42522773]
[1770945424735,11.80589614,78.589,78.486,4.44108009]
[1770945424923,7.4191102,78.56,78.486,4.44108009]
[1770945425732,7.4191102,78.56,78.494,11.4755]
[1770945425733,11.4677,78.548,78.494,11.4755]
[1770945425933,11.4677,78.548,78.495,4.44108009]
[1770945430533,11.4677,78.548,78.47,7.4191102]
[1770945430534,11.4664,78.557,78.499,4.42824108]
[1770945431839,11.4664,78.557,78.503,4.42824108]
[1770945432639,11.4664,78.557,78.506,4.55912385]
[1770945433341,11.80589614,78.599,78.506,4.55912385]
[1770945433342,11.4652,78.566,78.506,4.55912385]
[1770945433942,11.4652,78.566,78.516,4.55912385]
[1770945434142,11.4636,78.576,78.516,4.55912385]
[1770945434342,101.68,78.595,78.516,4.55912385]
[1770945434843,3.32032573,78.58,78.531,4.56651389]
[1770945435038,3.32032573,78.59,78.543,4.56651389]
[1770945435433,3.32032573,78.6,78.551,4.56651389]
[1770945436637,3.32032573,78.6,78.553,4.5560165]
[1770945436842,11.4593,78.605,78.553,4.5560165]
[1770945437040,11.80589614,78.664,78.553,4.5560165]
[1770945437346,8.8897824,78.64,78.553,4.5560165]
[1770945438839,11.4566,78.625,78.572,11.4641]
[1770945439242,11.4551,78.635,78.584,11.4623]
[1770945439442,11.4551,78.635,78.585,4.55612335]
[1770945441243,11.4562,78.627,78.577,11.4634]
[1770945441640,8.8897824,78.64,78.57,4.53044695]
[1770945441942,11.4592,78.607,78.549,4.53044695]
[1770945442248,8.8897824,78.6,78.534,4.55266336]
[1770945442445,11.4615,78.59,78.534,4.55266336]
[1770945442644,8.8897824,78.6,78.534,4.55266336]
[1770945442848,101.62,78.61,78.534,4.55266336]
[1770945443038,11.4589,78.608,78.548,4.55266336]
[1770945443243,101.62,78.612,78.548,4.55266336]
[1770945443451,8.8897824,78.6,78.531,4.55266336]
[1770945444649,11.4604,78.598,78.542,11.4684]
[1770945444945,8.8897824,78.62,78.543,4.54710206]
[1770945445150,8.8897824,78.64,78.567,4.54710206]
[1770945446047,8.8897824,78.64,78.579,4.54710206]
[1770945446048,11.4544,78.639,78.579,4.54710206]
[1770945446241,8.8897824,78.64,78.579,4.54710206]
[1770945446650,11.4568,78.623,78.569,11.4645]
[1770945446950,8.8897824,78.62,78.564,4.54496778]
[1770945447251,8.8897824,78.62,78.531,4.54496778]
[1770945447451,101.62,78.619,78.531,4.54496778]
[1770945448248,11.461,78.594,78.54,11.4687]
[1770945450055,11.461,78.594,78.51,8.8897824]
[1770945450056,8.8897824,78.6,78.549,11.4674]
[1770945450848,11.4614,78.591,78.541,15.99184606]
[1770945453649,11.4614,78.591,78.541,4.52314606]
[1770945453846,11.4625,78.584,78.533,11.4698]
[1770945454050,38.22,78.634,78.499,101.6]
[1770945454051,8.8897824,78.58,78.513,4.49666188]
[1770945454652,11.4636,78.576,78.525,4.49716083]
[1770945454857,8.8897824,78.6,78.525,4.49716083]
[1770945455158,8.8897824,78.6,78.537,4.49716083]
[1770945456250,11.4617,78.589,78.538,4.49920426]
[1770945457150,11.4617,78.589,78.51,8.8897824]
[1770945457151,11.4629,78.581,78.531,11.4701]
[1770945457451,8.8897824,78.6,78.521,4.49920426]
[1770945457452,101.62,78.592,78.521,4.49920426]
[1770945457945,8.8897824,78.6,78.521,4.49920426]
[1770945458144,101.62,78.599,78.521,4.49920426]
[1770945458344,8.8897824,78.6,78.521,4.49920426]
[1770945458556,11.464,78.574,78.529,11.4704]
[1770945459248,11.4625,78.584,78.534,15.96841423]
[1770945459445,11.4625,78.584,78.535,4.49871423]
[1770945465662,101.62,78.595,78.524,11.471]
[1770945465959,8.8897824,78.58,78.524,11.471]
[1770945466162,11.4656,78.563,78.522,4.50022382]
[1770945466962,3.32211389,78.56,78.522,4.50022382]
[1770945467762,11.4662,78.559,78.522,4.50022382]
[1770945468158,3.32211389,78.56,78.522,4.50022382]
[1770945468553,3.32211389,78.57,78.522,4.50022382]
[1770945468862,101.62,78.586,78.522,4.50022382]
[1770945469457,11.4643,78.571,78.531,11.4701]
[1770945469664,11.4643,78.571,78.522,4.50022382]
[1770945470856,11.4643,78.571,78.523,4.50091226]
[1770945471872,11.4643,78.571,78.524,11.4711]
[1770945472766,11.4643,78.571,78.524,15.97242061]
[1770945473962,11.4643,78.571,78.527,11.4706]
[1770945474161,11.4643,78.571,78.5,7.41442931]
[1770945474162,11.4643,78.571,78.528,4.50132061]
[1770945475857,11.4643,78.571,78.529,11.4704]
[1770945476768,11.4643,78.571,78.532,15.95121654]
[1770945477170,11.4643,78.571,78.519,4.48131654]
[1770945477467,11.4632,78.579,78.532,4.48131654]
[1770945477671,101.62,78.589,78.532,4.48131654]
[1770945478673,11.4629,78.581,78.536,11.4693]
[1770945478874,11.4629,78.581,78.537,4.49581647]
[1770945479373,11.4615,78.591,78.541,4.49581647]
[1770945479967,11.4615,78.591,78.546,15.96371647]
[1770945480166,11.4615,78.591,78.547,4.49581647]
[1770945480671,104.66,78.604,78.534,11.4696]
[1770945480672,11.463,78.58,78.534,11.4696]
[1770945480873,11.463,78.58,78.533,4.48833368]
[1770945480874,7.41442931,78.59,78.533,4.48833368]
[1770945481672,11.4655,78.563,78.516,11.4722]
[1770945481872,11.4655,78.563,78.517,4.48847322]
[1770945482183,7.41442931,78.57,78.517,4.48847322]
[1770945483778,11.4664,78.557,78.517,4.48847322]
[1770945483969,7.41442931,78.57,78.504,4.50897706]
[1770945484471,104.5,78.569,78.504,4.50897706]
[1770945485776,11.4668,78.555,78.507,4.51223593]
[1770945486680,11.4677,78.548,78.507,4.51223593]
[1770945490977,11.4677,78.548,78.468,22.9586]
[1770945490978,3.32351661,78.53,78.49,4.47245392]
[1770945491678,101.64,78.544,78.49,4.47245392]
[1770945491881,11.4695,78.536,78.49,4.47245392]
[1770945492179,3.32351661,78.54,78.491,4.45951596]
[1770945492984,11.4668,78.554,78.507,4.45951596]
[1770945493887,11.4678,78.547,78.51,4.45951596]
[1770945494282,3.32351661,78.54,78.501,11.4744]
[1770945494884,3.32351661,78.54,78.494,4.43471454]
[1770945494885,3.32351661,78.53,78.494,4.43471454]
[1770945496584,3.32351661,78.52,78.483,11.4771]
[1770945497180,14.79381661,78.53,78.483,11.4771]
[1770945499288,104.5,78.548,78.481,4.48041701]
[1770945499289,14.79531661,78.52,78.481,4.48041701]
[1770945499492,3.32351661,78.5,78.451,4.50564872]
[1770945500291,11.4752,78.497,78.451,4.50564872]
[1770945501892,11.4752,78.497,78.453,4.51030503]
[1770945502493,3.32351661,78.49,78.453,4.51030503]
[1770945503388,3.32351661,78.49,78.454,4.45669637]
[1770945503595,11.475,78.498,78.454,4.45669637]
[1770945505397,14.79971661,78.49,78.454,4.45669637]
[1770945506395,11.475,78.498,78.456,4.45071563]
[1770945506598,101.66,78.517,78.456,4.45071563]
[1770945506599,3.32351661,78.51,78.456,4.45071563]
[1770945506908,3.32351661,78.5,78.456,4.45071563]
[1770945507809,3.32351661,78.5,78.458,4.45071563]
[1770945508006,3.32351661,78.51,78.458,4.45071563]
[1770945508202,3.32351661,78.51,78.408,178.7041]
[1770945508203,3.32351661,78.53,78.471,4.46208012]
[1770945508405,14.79381661,78.53,78.483,4.46208012]
[1770945509211,14.79381661,78.53,78.485,4.46208012]
[1770945509505,3.32351661,78.55,78.501,4.46208012]
[1770945510810,14.79101661,78.55,78.509,4.46247313]
[1770945511004,3.32351661,78.56,78.509,4.46247313]
[1770945511406,11.4661,78.559,78.511,4.46237324]
[1770945512811,11.4648,78.568,78.516,4.46848397]
[1770945513412,11.4633,78.578,78.521,4.46848397]
[1770945513710,3.32351661,78.59,78.541,4.46848397]
[1770945514309,3.32351661,78.57,78.527,4.47568776]
[1770945514911,7.41271567,78.59,78.527,4.47568776]
[1770945515706,11.4631,78.58,78.529,4.47568776]
[1770945515911,7.41271567,78.59,78.515,4.47568776]
[1770945516108,103.78,78.589,78.515,4.47568776]
[1770945516506,7.41271567,78.57,78.515,4.47568776]
[1770945517213,7.41271567,78.57,78.517,4.4491947]
[1770945517408,101.66,78.581,78.517,4.4491947]
[1770945517607,11.464,78.574,78.52,11.4717]
[1770945517808,11.464,78.574,78.52,15.9208947]
[1770945518319,11.464,78.574,78.521,4.51876523]
[1770945518620,11.464,78.574,78.526,4.51876523]
[1770945519716,11.464,78.574,78.527,11.4706]
[1770945520018,11.464,78.574,78.528,4.51876523]
[1770945520818,101.66,78.587,78.536,4.57297965]
[1770945520819,11.4621,78.587,78.536,4.57297965]
[1770945521416,11.4606,78.597,78.538,4.57297965]
[1770945522013,11.4606,78.597,78.546,4.57297965]
[1770945525120,7.41271567,78.6,78.501,22.9489]
[1770945525121,11.4623,78.585,78.535,11.4695]
[1770945526728,11.4623,78.585,78.535,16.00366284]
[1770945527029,11.4638,78.575,78.526,11.4708]
[1770945527226,11.4638,78.575,78.527,4.53416284]
[1770945530726,11.4638,78.575,78.529,4.5248675]
[1770945531528,11.4638,78.575,78.531,11.47]
[1770945531722,11.4638,78.575,78.488,101.64]
[1770945531723,11.4625,78.584,78.532,4.5248675]
[1770945532833,11.4625,78.584,78.533,15.99553491]
[1770945533934,11.4625,78.584,78.535,11.4695]
[1770945534836,3.3207764,78.58,78.535,11.4695]
[1770945535435,11.4633,78.578,78.535,11.4695]
[1770945535834,11.462,78.587,78.542,4.5229234]
[1770945536038,3.3207764,78.58,78.542,4.5229234]
[1770945537434,11.4634,78.578,78.542,4.5229234]
[1770945539132,11.4634,78.578,78.542,4.5229234]
[1770945541443,3.3207764,78.56,78.517,11.4721]
[1770945541644,3.3207764,78.55,78.513,4.49948867]
[1770945542039,3.3207764,78.54,78.5,4.49948867]
[1770945542241,3.3207764,78.56,78.501,4.53188072]
[1770945542642,11.4651,78.566,78.52,4.53188072]
[1770945543743,11.4651,78.566,78.523,4.53188072]
[1770945544738,3.3207764,78.58,78.531,4.52661184]
[1770945545241,3.3207764,78.56,78.511,4.52661184]
[1770945546946,3.3220235,78.56,78.522,11.4713]
[1770945547746,11.4648,78.568,78.522,16.00721028]
[1770945547946,11.4648,78.568,78.526,11.4707]
[1770945549740,3.3220235,78.57,78.51,3.3220235]
[1770945549741,3.3220235,78.57,78.53,4.54335381]
[1770945550948,3.3220235,78.57,78.532,11.4699]
[1770945552054,3.3220235,78.57,78.53,4.54335381]
[1770945552055,11.4646,78.569,78.53,4.54335381]
[1770945557054,11.81253071,78.574,78.532,4.50922445]
[1770945557251,11.4636,78.576,78.532,4.50922445]
[1770945557451,3.3220235,78.57,78.532,4.50922445]
[1770945558856,3.3220235,78.57,78.533,11.4697]
[1770945563754,14.7865235,78.57,78.532,4.50922445]
[1770945565154,3.3220235,78.57,78.534,4.49188033]
[1770945565756,11.4648,78.568,78.534,4.49188033]
[1770945566560,3.3220235,78.57,78.534,4.49188033]
[1770945567267,3.3220235,78.56,78.534,4.49188033]
[1770945567769,3.3220235,78.55,78.512,4.50096151]
[1770945567961,3.3220235,78.54,78.491,4.50096151]
[1770945568765,3.3220235,78.54,78.507,11.4736]
[1770945569161,3.3220235,78.54,78.502,4.47696907]